{"text_format":"3","workbook":"xlsx","n_sheets":1,"sheets":["ИЛ ОБЩИЙ ТЕСТ"],"not_rendered":{"defined_names":7},"read":"whole","date_system":"1900"}

{"sheet":"ИЛ ОБЩИЙ ТЕСТ","index":0,"n_rows":198,"n_cols":10,"rows_kept":198,"merged":[[0,0,10,0],[0,1,0,9],[0,10,12,10],[1,1,1,2],[1,3,1,4],[1,5,10,7],[1,8,1,9],[2,1,2,2],[2,3,2,4],[2,8,2,9],[3,1,3,2],[3,3,3,4],[3,8,3,9],[4,1,4,2],[4,3,4,4],[4,8,4,9],[5,1,5,2],[5,3,5,4],[5,8,5,9],[6,1,6,2],[6,3,6,4],[6,8,10,9],[7,1,7,2],[7,3,7,4],[8,1,8,2],[8,3,8,4],[9,1,9,2],[9,3,9,4],[10,1,10,2],[10,3,10,4],[11,0,12,9],[13,0,222,0],[13,1,13,9],[14,1,14,6],[14,7,14,9],[14,10,23,10],[21,1,21,6],[21,7,21,9],[24,1,24,6],[24,7,24,9],[27,1,27,6],[27,7,27,9],[28,7,29,9],[30,1,30,6],[30,7,30,9],[31,7,37,9],[38,1,38,6],[38,7,38,9],[39,7,41,9],[42,1,42,9],[43,2,43,6],[43,7,43,9],[44,2,44,6],[44,7,44,9],[45,1,45,9],[46,1,46,9],[46,10,130,10],[47,1,47,9],[48,5,48,6],[48,7,48,9],[49,5,49,6],[49,7,49,9],[50,5,50,6],[50,7,50,9],[51,5,51,6],[51,7,51,9],[52,5,52,6],[52,7,52,9],[53,5,53,6],[53,7,53,9],[54,1,54,9],[55,5,55,6],[55,7,55,9],[56,5,56,6],[56,7,56,9],[57,5,57,6],[57,7,57,9],[58,1,58,9],[59,5,59,6],[59,7,59,9],[60,7,60,9],[61,7,61,9],[62,7,62,9],[63,7,63,9],[64,7,64,9],[65,7,65,9],[66,7,66,9],[67,7,67,9],[68,7,68,9],[70,7,70,9],[71,7,71,9],[72,7,72,9],[73,7,73,9],[74,7,74,9],[75,7,75,9],[76,7,76,9],[77,7,77,9],[78,7,78,9],[79,7,79,9],[80,7,80,9],[81,7,81,9],[82,7,82,9],[83,7,83,9],[85,7,85,9],[86,7,86,9],[87,7,87,9],[88,7,88,9],[89,7,89,9],[90,7,90,9],[91,7,91,9],[92,7,92,9],[93,7,93,9],[96,7,96,9],[97,7,97,9],[98,7,98,9],[99,7,99,9],[100,7,100,9],[101,7,101,9],[102,7,102,9],[103,7,103,9],[105,7,105,9],[106,1,106,9],[107,5,107,6],[107,7,107,9],[108,5,108,6],[108,7,108,9],[109,5,109,6],[110,5,110,6],[110,7,110,9],[111,1,111,9],[112,5,112,6],[112,7,112,9],[113,5,113,6],[113,7,113,9],[114,5,114,6],[114,7,114,9],[115,5,115,6],[115,7,115,9],[116,5,116,6],[116,7,116,9],[117,5,117,6],[117,7,117,9],[119,1,119,9],[120,1,120,9],[121,5,121,6],[121,7,121,9],[122,5,122,6],[122,7,122,9],[123,1,123,9],[124,5,124,6],[124,7,124,9],[125,5,125,6],[125,7,125,9],[126,1,126,9],[127,2,127,6],[127,7,127,9],[128,2,128,6],[128,7,128,9],[129,1,130,9],[131,1,131,9],[132,1,132,9],[133,5,133,6],[133,7,133,9],[133,10,222,10],[134,5,134,6],[134,7,134,9],[135,1,135,9],[136,5,136,6],[136,7,136,9],[137,5,137,6],[137,7,137,9],[138,5,138,6],[138,7,138,9],[139,5,139,6],[140,5,140,6],[141,5,141,6],[141,7,141,9],[142,1,142,9],[143,2,143,6],[143,7,143,9],[144,2,144,6],[144,7,144,9],[145,1,145,9],[146,1,146,9],[147,1,147,9],[148,5,148,6],[148,7,148,9],[149,5,149,6],[149,7,149,9],[150,5,150,6],[150,7,150,9],[151,1,151,9],[152,5,152,6],[152,7,152,9],[153,5,153,6],[153,7,153,9],[154,5,154,6],[154,7,154,9],[155,5,155,6],[155,7,155,9],[156,5,156,6],[156,7,156,9],[157,5,157,6],[157,7,157,9],[158,5,158,6],[158,7,158,9],[159,1,159,9],[160,2,160,6],[160,7,160,9],[161,2,161,6],[161,7,161,9],[162,1,162,9],[163,1,163,9],[164,1,164,9],[165,5,165,6],[165,7,165,9],[166,5,166,6],[166,7,166,9],[167,1,167,9],[168,5,168,6],[168,7,168,9],[169,5,169,6],[169,7,169,9],[170,5,170,6],[170,7,170,9],[171,5,171,6],[172,5,172,6],[173,5,173,6],[173,7,173,9],[174,1,174,9],[175,2,175,6],[175,7,175,9],[176,2,176,6],[176,7,176,9],[177,1,178,9],[179,1,179,9],[180,5,180,6],[180,7,180,9],[181,5,181,6],[181,7,181,9],[182,5,182,6],[182,7,182,9],[183,5,183,6],[183,7,183,9],[184,5,184,6],[184,7,184,9],[185,5,185,6],[185,7,185,9],[186,1,186,9],[187,1,187,9],[188,1,188,9],[189,7,189,9],[190,7,190,9],[191,1,191,9],[192,1,193,1],[192,2,193,3],[192,4,193,6],[192,7,197,9],[194,2,194,3],[194,4,194,6],[195,1,196,1],[195,2,196,3],[195,4,196,6],[197,2,197,3],[197,4,197,6],[198,1,198,9]]}
[]
[null,"ЧЕМПИОНАТ",{"$nulls":3},"Инфраструктурный лист - документ, включающий в себя исчерпывающий перечнь оборудования, инструментов, расходных материалов и СИЗ для организации и проведения Региональных чемпионатов. Регион вправе проводить Региональные этапы чемпионатов как на оборудовании для Финала, так и на обрудовании являющееся актуальным на территории региона.  В графе \"С\" указывается оборудование, котрое призвано обеспечить выполнение задания в рамках трудовых функций специалиста. В графе \"D\" указываются минимальные требования к оборудованию для выполнения трудовых функций. В графе \"Е\" указываются единицы измерения. В графе \"F\" указывается количество единиц оборудования на 1 Рабочее место. В графе \"G\" указывается количество един оборудования на всех аккредитованных участников и экспертов. Расходные материалы, инструмент и СИЗ не могут быть меньше количества аккредитованных участников и экспертов, Расходные материалы, инструмент и СИЗ расчитываются строго с учётом аккредитованных лиц на площадке. Графы Н и I заполняются в том слуучае, если наименование оборудования и/или его технические характеристики отличны от наименования оборудования и технических характеристик, указанных в графах С и D. В графе J отражается комментарий (обоснование) отличия (почему используется иное оборудование и/или технические характеристики)",null,null,"УТВЕРЖДАЮ                                                                                ПРЕДСЕДАТЕЛЬ СК"]
[null,"Сроки проведения "]
[null,"Место проведения"]
[null,"НАИМЕНОВАНИЕ КОМПЕТЕНЦИИ",null,"Лабораторный медицинский анализ (Юниоры от 14 лет)",{"$nulls":4},"                             ФИО                                                   подпись"]
[null,"Главный эксперт"]
[null,"Технический эксперт",{"$nulls":6},"Рассмотрено / Согласовано                                                                   Советом компетенции                                                                                                                                                                                                                                                                                                                                                   дата согласования"]
[null,"Количество экспертов (в том числе с главным экспертом)"]
[null,"Количество конкурсантов (команд)",null,6]
[null,"Количество рабочих мест"]
[null,"Общая площадь застройки компетенции"]
[]
[]
[null,"РАБОЧАЯ ПЛОЩАДКА КОНКУРСАНТОВ"]
[null,"ОСНОВНОЕ ОБОРУДОВАНИЕ  (НА 1 КОНКУРСАНТА \\ КОМАНДУ)",{"$nulls":5},"Вариативная часть для РЧ"]
[null,"№","Наименование позиции","Технические характеристики ","Ед. измерения","Кол-во на 1 РМ","Кол-во общее","Наименование позиции","Технические характеристики","Комментарий/обоснование"]
[null,1]
[null,2]
[null,3]
[null,4]
[null,5]
[null,"ВСПОМАГАТЕЛЬНОЕ ОБОРУДОВАНИЕ (НА 1 КОНКУРСАНТА \\ КОМАНДУ)",{"$nulls":5},"Вариативная часть для РЧ"]
[null,"№","Наименование позиции","Технические характеристики ","Ед. измерения","Кол-во на 1 РМ","Кол-во общее","Наименование позиции","Технические характеристики","Комментарий/обоснование"]
[null,1]
[null,"ПРОГРАММНОЕ ОБЕСПЕЧЕНИЕ (НА 1 КОНКУРСАНТА \\ КОМАНДУ)",{"$nulls":5},"Вариативная часть для РЧ"]
[null,"№","Наименование позиции"," Тех. описание позиции","Ед. измерения","Кол-во на 1 РМ","Кол-во общее","Наименование позиции","Технические характеристики","Комментарий/обоснование"]
[null,1]
[null,"МЕБЕЛЬ И ФУРНИТУРА (НА 1 КОНКУРСАНТА \\ КОМАНДУ)",{"$nulls":5},"Вариативная часть для РЧ"]
[null,"№","Наименование позиции"," Тех. описание позиции","Ед. измерения","Кол-во    1 РМ","Кол-во общее","НЕ ПРИМЕНИМО"]
[null,1]
[null,"РАСХОДНЫЕ МАТЕРИАЛЫ (НА 1 КОНКУРСАНТА \\ КОМАНДУ)",{"$nulls":5}," Вариативная часть для РЧ"]
[null,"№","Наименование позиции"," Тех. описание позиции","Ед. измерения","Кол-во    1 РМ","Кол-во общее","НЕ ПРИМЕНИМО"]
[null,1]
[null,2]
[null,3]
[null,4]
[null,5]
[null,6]
[null,"СРЕДСТВА ИНДИВИДУАЛЬНОЙ ЗАЩИТЫ (НА 1 КОНКУРСАНТА \\ КОМАНДУ)",{"$nulls":5}," Вариативная часть для РЧ"]
[null,"№","Наименование позиции"," Тех. описание позиции","Ед. измерения","Кол-во            1 РМ","Кол-во общее","НЕ ПРИМЕНИМО"]
[null,1]
[null,2]
[null,"ДОПОЛНИТЕЛЬНЫЕ ТРЕБОВАНИЯ К ОБЕСПЕЧЕНИЮ КОНКУРСНЫХ ПЛОЩАДОК КОМАНД (КОММУНИКАЦИИ, ПОДКЛЮЧЕНИЯ, ОСВЕЩЕНИЕ И Т.П.)"]
[null,"№","Требование (описание)",{"$nulls":4},"Комментарий"]
[null,1]
[]
[null,"ОБЩАЯ РАБОЧАЯ ПЛОЩАДКА КОНКУРСАНТОВ"]
[null,"ОБОРУДОВАНИЕ И ИНСТРУМЕНТЫ (НА ВСЕХ КОНКУРСАНТОВ \\ КОМАНД)"]
[null,"№","Наименование позиции"," Тех. описание позиции","Ед. измерения","Кол-во",null,"Комментарий"]
[null,1,"Микроскоп  медицинский прямой СХ 31 (Olympus) для лабораторных исследований. ","Современный цифровой микроскоп, со специальной программой для биологических, лабораторных и иных исследований, качественного анализа крови (гемосканирование). Оснащен универсальной оптической системой, настроенной на бесконечность. Встроенный галогеновый осветитель.","шт.",1]
[null,2,"Видеокамера (цветная цифровая камера VidejZavr Standart VZ C 31 S в комплекте с VZ  ПО Catalog)","Камера Д/Н, 1/2.5\" HITACHI HCPS CCD, 942х672, 560 ТВЛ, 0,03 лк (цвет)/0,0003 лк (ч/б) @ F1.2, механический ИК-фильтр,DSP S.I.E 2, ATW, HLC, 3D-DNR, WDR, детектор движения, 12 V DC","шт.",1]
[null,3,"Ноутбук  ",";экран: 15.6\"; разрешение экрана: 1920×1080; процессор: Intel Core i3 7100U; частота: 2.4 ГГц; память: 8192 Мб, DDR4; HDD: 1000 Гб, 5400 об/мин; SSD: 128 Гб; nVidia GeForce 940MX — 2048 Мб; WiFi; Bluetooth; HDMI; WEB-камера; Endless","шт.",1]
[null,4,"Дезар-4","Крепления настенного типа.\nНаличие счетчика времени.\nПрименяется для борьбы с атипичной пневмонией.\nБактерицидная эффективность составляет 99,0%.\n2 лампы мощностью по 15 Вт.\nПредназначен для установки в помещениях II-III типа.\nЭксплуатационный срок ламп: 8000 ч.\nПроизводительность: 70 м3/ч.\nПотребляемая мощность: 150 Вт.\nМощность звука: 39 Дб.\nГолубой цвет.\nПараметры: 890х370х140 мм.\nВес: 6,15 кг.","шт.",1]
[null,5,"Центрифуга лабораторная","Диапазон скорости вращения 1000,1500,2000,2700 об/мин\nШаг установки скорости 4 предустановленных скорости\nМакс. относительное центробежное ускорение (RCF) 1350 G\nСменные роторы Нет\nМаксимальное количество мест 10\nМаксимальный размер применяемых пробирок 18х150 мм\nМаксимальный объем применяемых пробирок 15 мл\nРегулировка времени работы От 1 до 99 мин\nДатчик дисбаланса Нет\nДвухрежимная регулировка скорости (RPM/RCF) Нет\nГабаритные размеры 450х400х265 мм\nМасса 10 кг\nГабаритные размеры в упаковке 465х485х475 мм\nМасса в упаковке 12 кг\nПотребляемая мощность 80 Ватт\nПитание 220 В / 50 Гц","шт.",1]
[null,"МЕБЕЛЬ И ФУРНИТУРА (НА ВСЕХ КОНКУРСАНТОВ \\ КОМАНД)"]
[null,"№","Наименование позиции"," Тех. описание позиции","Ед. измерения","Кол-во",null,"Комментарий"]
[null,1,"Лабораторный стол СКДЛ-1-3/1-4 ","Стол лабораторный СКДЛ 1-3 с каркасом из анодированного алюминиевого профиля","шт.",6]
[null,2,"Лабораторный стул газ-лифт","Элементы каркаса выполнены из прочных металлических конструкций, окрашенных эпоксидной порошковой краской черного цвета.\nСтул обладает надежным основанием, снабжённым пятью мебельными колесами.\nВ обивке сиденья использована искусственная кожа и поролоновая подкладка.\nРегулировка высота табурета осуществляется посредством механизма газ-лифта Подробнее: https://rcamed.ru/p91336798-stul-meditsinskij-laboratornyj.html","шт.",6]
[null,"РАСХОДНЫЕ МАТЕРИАЛЫ (НА ВСЕХ КОНКУРСАНТОВ \\ КОМАНД)"]
[null,"№","Наименование позиции"," Тех. описание позиции","Ед. измерения","Кол-во",null,"Комментарий"]
[null,1,"Пробирки центрифужные градуировнные","Объем.................... 10 мл\n\nЦена деления......  0,1 мл\n\nДопустимая погрешность.........±0,1 мл\n\nНаружный диаметр..........17,0±0,5 мм\n\nВысота...................... 105+5-1 мм\n","шт.",150]
[null,{"$f":"1+B61","v":2},"Контейнер  для сбора и дезинфекции использованных изделий, перчаток и т.д. (отходов класса Б) на 1л","Полный объем – 1,6±0,08 л. \nПолезный объем – 1 л. \nГабаритные размеры контейнера (длина x ширина x высота): 223х149х91 мм. \nМасса контейнера: 0,53 кг. ","шт.",6]
[null,{"$f":"1+B62","v":3},"Дезинфицирующий раствор  с дозатором на 200 мл ","Дезинфицирующее средство предназначено в качестве кожного антисептика для обработки рук","шт.",1]
[null,4,"Емкость-контейнер для сбора острого одноразового инструментария","Ёмкость-контейнер состоит из ведра, крышки, заглушки и этикетки.","шт.",6]
[null,5,"Предметные стекла","Предметные стекла незаменимы при изготовлении микропрепаратов для изучения под микроскопом. Они применяются для размещения тончайшего среза изучаемого образца. Предметные стекла имеют однородную структуру и изготовлены из стекла высокой прозрачности.","упаковка",1]
[null,6,"Шлифованные стекла","Предметные стекла со шлифованными краями предназначены для самостоятельного изготовления микропрепаратов. Они изготовлены из качественного стекла по современным технологиям, обладают высокой степенью прозрачности. Равномерная толщина предметного стекла по всей длине позволяет исследовать даже большие микропрепараты без дополнительной подстройки резкости изображения.","упаковка",1]
[null,7,"Укладка-контейнер  на 50 пробирок или 10 флаконов -250 мл  или аналог","Контейнер укладка для транспортировки пробирок представляют собой контейнер с плотно прилегающей крышкой.","шт.",1]
[null,8,"Дезинфицирующие средства  1л с инструкцией","Дезинфицирующие средства обладают высокой антимикробной активностью в отношении грамотрицательных и грамположительных (включая микобактерии туберкулеза) микроорганизмов, Инструкция по преминению распечатывается организаторами площадки с интернет ресурса.","шт.",1]
[null,9,"Пакеты ПЭ для сбора и утилизации медицинских отходов класса А и Б ( объем 5л.)","Имеют двойную спайку на дне (двойной донный шов) и оснащаются специальными стяжками, которые позволяют быстро и эффективно герметизировать пакеты после их заполнения, специальные информационные окна на пакете (или бирки) упрощают процесс маркировки.","шт.",10]
[null,10,"Корзина для отходов класса А (10л.)","корзина белого цвета","шт.",5]
[null,11,"Спирт 96 %","Этиловый спирт 96% представляет собой лёгкую прозрачную жидкость, обладающую характерным не очень приятным запахом и очень жгучим вкусом.","флакон",1]
[null,12,"Покровные стекла ","В упаковке 100 штук.  Разных размеров по 1 упаковке.","упаковка",1]
[null,13,"Стеклянные палочки ","Палочки предназначенные для перемешивания жидкости","шт.",2]
[null,14,"Планшеты (папка для микропрепаратов)","Планшеты для хранения и транспортировки микропрепаратов емкостью от 25 до 100 стекол изготовлены из полимерных материалов высокой механической прочности.","шт.",1]
[null,15,"Масло иммерсионное  ","Иммерсионное масло иммерсионное масло кедровое масло с показателем преломления, близким к стеклу (n = 1,5). Используется в микроскопии с целью увеличения числовой апертуры объектива за счет уменьшения потерь света","шт.",1]
[null,16,"Марлевые салфетки  размером: 10 х 10 см. - сложены аналогично, из полоски марли т.е. номинальный размер 10 х 10 см.) нестерильная упакована в запаянный герметичный бумажный пакет и таких пакетов в кол-ве по 10 шт сложены в картонную упаковку ","Марлевые салфетки приготовленные из медицинской марли","шт.",50]
[null,17,"Стирильный полимерный контейнер.","Одноразовый контейнер для сбора биологического материала","шт.",6]
[null,18,"Дезинфицирующие салфетки  для  дезинфекции рук. В банке с  дозатором 60 шт. салфеток.","В пластассовой упаковке 60 шт.","шт.",3]
[null,19,"Жидкое мыло с дозатором","Антибактериальное 500 мл флакон с дозатором","шт.",1]
[null,20,"Пинцет лабораторный","металлический","шт.",1]
[null,21,"Карандаш по стеклу или перманентный маркер","на усмотрение организатора","шт.",2]
[null,22,"журналы для регистрации ","журнал для регистрации образцов общеклинической лаборатории и бракеражный журнал. Готовится непосредственно организаторами площадки.","шт.",12]
[null,23,"салфетки спиртовые","спиртовые салфетки 60*30 или 60*100 или 110*125.","шт.",50]
[null,24,"Спирт 70%","спирт этиловый.","шт.",1]
[null,25,"Бланк для микроскопии гематологических препаратов с микрофотографиями клеток крови","Составляются организатором площадки. ","шт.",6]
[null,26,"Бланки для микроскопии гистологических препаратов с микрофотографиями тканей органов","Составляются организатором площадки. ","шт.",6]
[null,27,"Бланки для микроскопии микробиологических препаратов с микрофотографиями бактериальных клеток","Составляются организатором площадки. ","шт.",6]
[null,28,"Бланк для приготовление дезинфицирующего .раствора","Составляются организатором площадки. ","шт.",6]
[null,29,"Окрашенный мазок крови для микроскопии","Предоставляется независимой клинической лаборатории в конверте с эталоном ответа.","шт.",1]
[null,30,"Окрашенный микробиологический препарат ","Предоставляется независимой микробиологической лаборатории в конверте с эталоном ответа. ","шт.",1]
[null,31,"Окрашенный препарат по гистологии","Предоставляется независимой гистологической лаборатории в конверте с эталоном ответа.","шт.",2]
[null,32,"Стикер с липким краем для заполнения формы приготовленного дезинфицирующего раствора","стикеры для заполнения","шт.",1]
[null,33,"Промывалка лабораторная","на усмотрение организатора","шт.",1]
[null,34,"Бланк результата биохимического исследования","бланка результата в производной форме. На усмотрения организатора","шт.",6]
[null,35,"Дозатор 1-5 мл","Механический дозатор, одноканальный, переменного объема","шт.",2]
[null,36,"Дозатор 100-1000 мкл","Механический дозатор, одноканальный, переменного объема","шт.",2]
[null,37,"Наконечник 1-кан/96 шт. в штат. 100-1000 мкл в штативе","Эти наконечники предназначены для одноканальных дозаторов и для многоканальных дозаторов\nИсполнения: \n2 - 300 мкл\n100 - 1 000 мкл\n1 000 - 5 000 мкл\n","упаковка",2]
[null,38,"Наконечник 1-кан/96 шт. в штат. 1-5 мл в штативе","Эти наконечники предназначены для одноканальных дозаторов и для многоканальных дозаторов\nИсполнения: \n2 - 300 мкл\n100 - 1 000 мкл\n1 000 - 5 000 мкл\n","упаковка",2]
[null,39,"Штатив для дозаторов","Универсальный штатив-стойка для дозаторов","шт.",4]
[null,40,"Штатив для центрифужных пробирок на 10 гнезд","Штатив для пробирок - вид лабораторного оборудование, которое применяется для одновременного размещения нескольких емкостей различного объема.","шт.",5]
[null,41,"Стакан химический на 50-100 мл","Стеклянный","шт.",5]
[null,42,"Колба коническая стеклянная плоскодонная на 250 мл с  пробкой","Стеклянная","шт.",2]
[null,43,"Дистиллированная вода ","Дистиллированная вода – это такая вода, которая очищена от органических и неорганических примесей.","л",5]
[null,44,"Набор реагентов для проведения биохимического исследования","Используется имитация растворов. Допускается использовать вместо растворов дисттиллированную воду","шт.",2]
[null,45,"Маркер по стеклу","На усмотрение организатора","шт.",2]
[null,46,"Аптечка для оказания медицинской помощи при аварийных ситуациях","Аптечка для оказания медицинской помощи при аварийных ситуациях","шт.",1]
[null,"СРЕДСТВА ИНДИВИДУАЛЬНОЙ ЗАЩИТЫ (НА ВСЕХ КОНКУРСАНТОВ \\ КОМАНД)"]
[null,"№","Наименование позиции"," Тех. описание позиции","Ед. измерения","Кол-во",null,"Комментарий"]
[null,1,"Маски медицинские ","Двухслойные. В упаковке 100 шт.","упаковка",1]
[null,2,"Медицинские перчатки S, M, L","Перчатки из нитрила являются самым современным и надежным видом одноразовых перчаток.\nОни лишены недостатков виниловых и латексных перчаток: прочны, эластичны, устойчивы к агрессивной среде и проколам. При этом они гипоаллергенны. В упаковке 100 пар","упаковка",1]
[null,3,"Очки защитные","Габариты, мм: 170 x 70 x 40","шт.",3]
[null,"ДОПОЛНИТЕЛЬНЫЕ ТРЕБОВАНИЯ К ОБЕСПЕЧЕНИЮ ОБЩЕЙ РАБОЧЕЙ ПЛОЩАДКЕ КОНКУРСАНТОВ (КОММУНИКАЦИИ, ПОДКЛЮЧЕНИЯ, ОСВЕЩЕНИЕ И Т.П.)"]
[null,"№","Требование (описание)",null,"Ед. измерения","Кол-во",null,"Комментарий"]
[null,1,"Электричество","380 вольт , 220-230, мощность 9,5 кВт"]
[null,2,"Водопровод ","Горячая и холодная"]
[null,3,"Напольное покрытие (ленолиум) ","моющаяся поверхность "]
[null,4,"Огнетушитель углекислотный ОУ-1","Торговая марка: ПОЖТЕХНИКА\nМесто использования: в помещении\nНаполнение: углекислотный\nОгнетушащая способность (площадь): 0.4 кв.м","шт.",1]
[null,5,"Аптечка для оказания медицинской помощи при аварийных ситуациях","Аптечка для оказания медицинской помощи при аварийных ситуациях","шт.",1]
[]
[null,"БРИФИНГ-ЗОНА"]
[null,"ОБОРУДОВАНИЕ И ИНСТРУМЕНТЫ (НА ВСЕХ КОНКУРСАНТОВ, ЭКСПЕРТОВ)"]
[null,"№","Наименование позиции"," Тех. описание позиции","Ед. измерения","Кол-во",null,"Комментарий"]
[null,1]
[null,"МЕБЕЛЬ И ФУРНИТУРА (НА ВСЕХ КОНКУРСАНТОВ, ЭКСПЕРТОВ)"]
[null,"№","Наименование позиции"," Тех. описание позиции","Ед. измерения","Кол-во",null,"Комментарий"]
[null,1]
[null,"ДОПОЛНИТЕЛЬНЫЕ ТРЕБОВАНИЯ К ОБЕСПЕЧЕНИЮ БРИФИНГ-ЗОНЫ (КОММУНИКАЦИИ, ПОДКЛЮЧЕНИЯ, ОСВЕЩЕНИЕ И Т.П.)"]
[null,"№","Требование (описание)",{"$nulls":4},"Комментарий"]
[null,1]
[]
[]
[null,"КОМНАТА ЭКСПЕРТОВ"]
[null,"ОБОРУДОВАНИЕ И ИНСТРУМЕНТЫ (НА ВСЕХ ЭКСПЕРТОВ)"]
[null,"№","Наименование позиции"," Тех. описание позиции","Ед. измерения","Кол-во",null,"Комментарий"]
[null,1]
[null,"МЕБЕЛЬ И ФУРНИТУРА (НА ВСЕХ ЭКСПЕРТОВ)"]
[null,"№","Наименование позиции"," Тех. описание позиции","Ед. измерения","Кол-во",null,"Комментарий"]
[null,1,"Стол ","стол компьютерный для офиса","шт.",10]
[null,2,"Корзина для мусора","Корзина прямоугольная для офисных помещений. ","шт.",1]
[null,3,"Шкаф ","Шкаф для личных вещей","шт.",1]
[null,4,"Вешалка","Вешалка 153х74х179 для личных вещей","шт.",10]
[null,5,"Стул ","Стул офисный \"Стандарт\"","шт.",12]
[null,"ДОПОЛНИТЕЛЬНЫЕ ТРЕБОВАНИЯ К ОБЕСПЕЧЕНИЮ КОМНАТЫ ЭКСПЕРТОВ (КОММУНИКАЦИИ, ПОДКЛЮЧЕНИЯ, ОСВЕЩЕНИЕ И Т.П.)"]
[null,"№","Требование (описание)",{"$nulls":4},"Комментарий"]
[null,1]
[]
[null,"КОМНАТА ГЛАВНОГО ЭКСПЕРТА"]
[null,"ОБОРУДОВАНИЕ И ИНСТРУМЕНТЫ (ДЛЯ ГЭ)"]
[null,"№","Наименование позиции"," Тех. описание позиции","Ед. измерения","Кол-во",null,"Комментарий"]
[null,1,"Ноутбук  ",";экран: 15.6\"; разрешение экрана: 1920×1080; процессор: Intel Core i3 7100U; частота: 2.4 ГГц; память: 8192 Мб, DDR4; HDD: 1000 Гб, 5400 об/мин; SSD: 128 Гб; nVidia GeForce 940MX — 2048 Мб; WiFi; Bluetooth; HDMI; WEB-камера; Endless  или аналоги","шт.",1]
[null,2,"Принтер","На усмотрении организации площадки.","шт.",1]
[null,"МЕБЕЛЬ И ФУРНИТУРА (ДЛЯ ГЭ)"]
[null,"№","Наименование позиции"," Тех. описание позиции","Ед. измерения","Кол-во",null,"Комментарий"]
[null,1,"Стеллаж","Бытовые стеллажи, выпускаемые для офиса и других помещений. ","шт.",1]
[null,2,"Стол ","стол компьютерный для офиса","шт.",1]
[null,3,"Корзина для мусора","Корзина прямоугольная для офисных помещений. ","шт.",1]
[null,4,"Стул ","Стул офисный \"Стандарт\"","шт.",1]
[null,5,"Шкаф ","Шкаф для личных вещей","шт.",1]
[null,6,"Вешалка","Вешалка 153х74х179 для личных вещей","шт.",1]
[null,"ДОПОЛНИТЕЛЬНЫЕ ТРЕБОВАНИЯ К ОБЕСПЕЧЕНИЮ КОМНАТЫ ГЛАВНОГО ЭКСПЕРТА (КОММУНИКАЦИИ, ПОДКЛЮЧЕНИЯ, ОСВЕЩЕНИЕ И Т.П.)"]
[null,"№","Требование (описание)",{"$nulls":4},"Комментарий"]
[null,1,"Интернет"]
[]
[null,"КОМНАТА КОНКУРСАНТОВ"]
[null,"ОБОРУДОВАНИЕ И ИНСТРУМЕНТЫ  (НА ВСЕХ КОНКУРСАНТОВ)"]
[null,"№","Наименование позиции"," Тех. описание позиции","Ед. измерения","Кол-во",null,"Комментарий"]
[null,1]
[null,"МЕБЕЛЬ И ФУРНИТУРА (НА ВСЕХ КОНКУРСАНТОВ)"]
[null,"№","Наименование позиции"," Тех. описание позиции","Ед. измерения","Кол-во",null,"Комментарий"]
[null,1,"Стол ","стол компьютерный для офиса","шт.",5]
[null,2,"Корзина для мусора","Корзина прямоугольная для офисных помещений. ","шт.",1]
[null,3,"Шкаф ","Шкаф для личных вещей","шт.",1]
[null,4,"Вешалка","Вешалка 153х74х179 для личных вещей","шт.",10]
[null,5,"Стул ","Стул офисный \"Стандарт\"","шт.",10]
[null,"ДОПОЛНИТЕЛЬНЫЕ ТРЕБОВАНИЯ К ОБЕСПЕЧЕНИЮ КОМНАТЫ КОНКУРСАНТОВ (КОММУНИКАЦИИ, ПОДКЛЮЧЕНИЯ, ОСВЕЩЕНИЕ И Т.П.)"]
[null,"№","Требование (описание)",{"$nulls":4},"Комментарий"]
[null,1]
[]
[]
[null,"КАНЦЕЛЯРИЯ НА КОМПЕТЕНЦИЮ (НА ВСЕХ КОНКУРСАНТОВ,  ЭКСПЕРТОВ)"]
[null,"№","Наименование позиции"," Тех. описание позиции","Ед. измерения","Кол-во",null,"Комментарий"]
[null,1,"бумага А4","на усмотрение организатора","упаковка",5]
[null,2,"скрепки канцелярские","на усмотрение организатора","упаковка",2]
[null,3,"степлер со скобами","на усмотрение организатора","упаковка",2]
[null,4,"ручка","на усмотрение организатора","упаковка",10]
[null,5,"фаилы А4","на усмотрение организатора","упаковка",1]
[]
[null,"\"ТУЛБОКС\" РЕКОМЕНДОВАННЫЙ ИНСТРУМЕНТ И ПРИНАДЛЕЖНОСТИ, КОТОРЫЕ ДОЛЖНА ПРИВЕЗТИ С СОБОЙ КОМАНДА (если применимо)"]
[null,"НА 1 КОНКУРСАНТА \\ КОМАНДУ"]
[null,"№","Наименование позиции"," Тех. описание позиции","Ед. измерения","Кол-во","Кол-во","Комментарий"]
[null,1]
[]
[null,null,"Главный Эксперт чемпионата"]
[]
[null,null,"                       (ФИО)",null,"      (подпись)                     (дата)"]
[null,null,"Технический администратор площадки "]
[]
[null,null,"                   (ФИО)",null,"      (подпись)                 (дата)"]